bitfinex-derivatives/quotes_SOLF0:USTF0_20220108
["timestamp","ask_amount","ask_price","bid_price","bid_amount"]
[1641656401865,5.58578617,143.23,143.18,0.928]
[1641656402266,5.58578617,143.23,143.19,0.928]
[1641656403766,5.58578617,143.23,143.16,27.66479]
[1641656403967,5.58601531,143.22,143.16,27.66479]
[1641656404167,5.58601531,143.22,143.16,28.59279]
[1641656404367,5.58681978,143.2,143.17,3.15544092]
[1641656404566,12.92581978,143.2,143.17,3.15544092]
[1641656404968,12.92581978,143.2,143.17,4.08344092]
[1641656405171,12.92581978,143.2,143.17,0.928]
[1641656405769,23.072,143.18,143.14,3.15544092]
[1641656406068,5.58832941,143.16,143.14,3.15544092]
[1641656406269,34.34932941,143.16,143.14,3.15544092]
[1641656407870,34.34932941,143.16,143.11,18.88734357]
[1641656409075,34.34932941,143.16,143.12,3.15544092]
[1641656409372,2.43438403,143.12,143.1,15.73190265]
[1641656409570,9.06838403,143.12,143.1,14.80390265]
[1641656409771,6.634,143.12,143.1,14.80390265]
[1641656410373,6.634,143.12,143.1,15.73190265]
[1641656410572,6.70626573,143.15,143.1,15.73190265]
[1641656410773,6.70626573,143.15,143.14,0.928]
[1641656410974,6.99007409,143.16,143.14,0.928]
[1641656411175,6.99007409,143.16,143.12,0.928]
[1641656411375,6.99007409,143.16,143.11,27.66479]
[1641656411574,6.99007409,143.16,143.14,0.928]
[1641656412374,6.70439134,143.19,143.15,0.928]
[1641656412575,6.70439134,143.19,143.11,31.66479]
[1641656412576,6.70439134,143.19,143.17,0.928]
[1641656412775,6.70439134,143.19,143.11,31.66479]
[1641656413178,6.70439134,143.19,143.11,59.32958]
[1641656413377,6.70439134,143.19,143.12,4.0]
[1641656413578,6.70439134,143.19,143.17,0.928]
[1641656414077,172.52202349,143.23,143.17,0.928]
[1641656414278,169.45002349,143.23,143.17,0.928]
[1641656414477,172.52202349,143.23,143.18,0.928]
[1641656414678,172.52202349,143.23,143.16,0.928]
[1641656414878,181.30902349,143.23,143.15,68.1345]
[1641656415080,5.58764939,143.18,143.14,14.80390265]
[1641656415383,11.67464939,143.18,143.14,14.80390265]
[1641656415879,5.58839982,143.16,143.14,14.80390265]
[1641656416281,5.58839982,143.16,143.13,0.928]
[1641656416482,6.70377106,143.21,143.15,0.928]
[1641656416681,6.70377106,143.21,143.15,6.264]
[1641656416881,6.70377106,143.21,143.19,0.928]
[1641656417181,17.68689956,143.23,143.2,0.928]
[1641656417380,17.68689956,143.23,143.15,10.264]
[1641656417381,17.68689956,143.23,143.17,27.66479]
[1641656417781,17.68689956,143.23,143.2,0.928]
[1641656417984,5.58524483,143.24,143.21,0.928]
[1641656418183,69.45412802,143.26,143.23,0.928]
[1641656418184,34.65022537,143.26,143.23,0.928]
[1641656418382,6.98543537,143.26,143.2,6.432]
[1641656419285,6.98543537,143.26,143.24,27.66479]
[1641656419484,6.98543537,143.26,143.22,27.66479]
[1641656420484,23.072,143.23,143.18,14.80390265]
[1641656420689,3.072,143.19,143.15,14.40048763]
[1641656420887,3.072,143.19,143.07,96.42802296]
[1641656420888,0.62064269,143.14,143.07,96.42802296]
[1641656421186,7.801,143.14,143.07,96.42802296]
[1641656421487,7.801,143.14,143.13,4.0]
[1641656421685,6.98714366,143.22,143.13,10.088]
[1641656421886,20.0,143.26,143.2,4.0]
[1641656422088,6.98445958,143.28,143.2,9.71]
[1641656422288,6.98445958,143.28,143.2,5.71]
[1641656422487,6.98445958,143.28,143.2,9.71]
[1641656423389,6.98445958,143.28,143.23,27.66479]
[1641656424694,20.0,143.29,143.23,27.66479]
[1641656425492,20.0,143.29,143.23,31.66479]
[1641656425795,20.0,143.29,143.18,68.8539]
[1641656425994,20.0,143.26,143.18,65.3639]
[1641656426194,28.744,143.26,143.18,65.3639]
[1641656426393,5.58526974,143.24,143.18,65.3639]
[1641656426993,25.58607474,143.22,143.18,65.3639]
[1641656427194,33.27407474,143.22,143.12,67.776]
[1641656427395,60.93886474,143.22,143.13,64.6463]
[1641656427796,64.93886474,143.22,143.13,64.6463]
[1641656427996,60.93886474,143.22,143.13,64.6463]
[1641656429597,20.0,143.18,143.13,64.6463]
[1641656429796,28.054,143.18,143.13,64.6463]
[1641656430297,5.58820018,143.16,143.08,63.8508]
[1641656430496,5.58820018,143.16,143.06,3.492]
[1641656430497,5.58820018,143.16,143.06,68.8664]
[1641656430797,5.58855999,143.15,143.06,67.1204]
[1641656431397,12.92055999,143.15,143.07,27.66479]
[1641656431997,12.92055999,143.15,143.07,44.48366212]
[1641656432199,32.92055999,143.15,143.07,44.48366212]
[1641656432397,32.92055999,143.15,143.07,48.48366212]
[1641656432799,32.92055999,143.15,143.07,44.48366212]
[1641656433602,32.92055999,143.15,143.07,48.48366212]
[1641656433800,12.92055999,143.15,143.07,44.48366212]
[1641656434000,5.58855999,143.15,143.13,4.92908302]
[1641656435604,5.58855999,143.15,143.14,4.92908302]
[1641656436606,5.58855999,143.15,143.13,4.92908302]
[1641656437407,0.66037562,143.13,143.07,44.47744293]
[1641656437607,5.58855999,143.15,143.07,44.47744293]
[1641656438109,20.0,143.16,143.07,51.97744293]
[1641656438310,26.98860857,143.19,143.08,4.0]
[1641656439412,26.98860857,143.19,143.11,27.66479]
[1641656439811,30.98860857,143.19,143.11,27.66479]
[1641656440211,30.98860857,143.19,143.07,46.22344293]
[1641656440413,37.75760857,143.19,143.08,16.81265293]
[1641656440613,4.0,143.18,143.08,16.81265293]
[1641656440816,37.75760857,143.19,143.08,16.81265293]
[1641656441313,37.75760857,143.19,143.07,83.93878436]
[1641656441514,27.66479,143.18,143.07,83.93878436]
[1641656442116,27.66479,143.18,143.07,87.93878436]
[1641656442317,27.66479,143.18,143.09,4.0]
[1641656442714,27.66479,143.18,143.1,4.0]
[1641656442913,5.58825461,143.16,143.1,4.0]
[1641656443315,5.58825461,143.16,143.11,4.0]
[1641656443514,5.58741351,143.18,143.12,27.66479]
[1641656443714,5.58741351,143.18,143.11,4.0]
[1641656443914,5.58741351,143.18,143.09,4.0]
[1641656444116,5.58817451,143.16,143.09,4.0]
[1641656445418,5.58860551,143.15,143.09,4.0]
[1641656445814,5.58860551,143.15,143.08,39.46134143]
[1641656446015,5.58860551,143.15,143.1,4.0]
[1641656446215,5.58860551,143.15,143.09,4.0]
[1641656447116,5.58860551,143.15,143.08,56.27399436]
[1641656447816,5.58895582,143.14,143.08,56.27399436]
[1641656450416,5.58895582,143.14,143.08,59.41698545]
[1641656451119,5.58895582,143.14,143.11,14.80249171]
[1641656454226,5.58895582,143.14,143.12,14.80249171]
[1641656456527,5.58895582,143.14,143.13,14.80249171]
[1641656458131,5.58895582,143.14,143.1,39.46134143]
[1641656458332,5.58895582,143.14,143.11,39.46134143]
[1641656458533,5.58877062,143.15,143.11,39.46134143]
[1641656460935,5.9561612,143.16,143.11,39.46134143]
[1641656461137,5.9561612,143.16,143.11,43.46134143]
[1641656461735,5.9561612,143.16,143.15,14.87910043]
[1641656461937,31.66479,143.16,143.12,42.60433252]
[1641656462141,27.14752873,143.14,143.08,59.95325105]
[1641656462740,4.0,143.13,143.06,125.32765105]
[1641656463038,11.31,143.13,143.06,58.20725105]
[1641656463739,7.31,143.13,143.07,16.90657274]
[1641656463939,27.66479,143.12,143.07,16.90657274]
[1641656464740,27.66479,143.12,143.04,16.90657274]
[1641656466145,34.22779,143.12,143.04,16.90657274]
[1641656467442,5.59054206,143.1,143.04,16.90657274]
[1641656468643,5.59054206,143.1,143.04,20.90657274]
[1641656468943,5.59054206,143.1,143.05,4.0]
[1641656469643,5.59054206,143.1,143.06,4.0]
[1641656470944,5.59054206,143.1,143.07,4.0]
[1641656471146,5.59054206,143.1,143.03,69.1107]
[1641656471544,5.59148959,143.08,143.04,4.0]
[1641656471744,5.59148959,143.08,143.03,69.1107]
[1641656472646,6.70847897,143.11,143.03,69.1107]
[1641656474051,6.70847897,143.11,143.08,4.0]
[1641656474248,20.0,143.14,143.08,8.743]
[1641656474448,20.0,143.14,143.08,36.40779]
[1641656475050,8.57613717,143.15,143.08,36.40779]
[1641656475652,8.57613717,143.15,143.08,8.743]
[1641656475852,8.57613717,143.15,143.07,4.0]
[1641656476054,8.57613717,143.15,143.04,70.4009]
[1641656476252,28.57613717,143.15,143.04,70.4009]
[1641656478555,28.57613717,143.15,143.06,27.66479]
[1641656479257,5.59050474,143.1,143.04,3.492]
[1641656479557,12.30150474,143.1,143.04,1.746]
[1641656480758,12.30150474,143.1,143.04,4.0]
[1641656481256,12.30150474,143.1,143.02,55.32958]
[1641656481459,5.59050474,143.1,143.02,55.32958]
[1641656481858,5.59050474,143.1,143.04,4.0]
[1641656482060,5.59050474,143.1,143.04,8.574]
[1641656482760,5.59050474,143.1,143.05,27.66479]
[1641656484166,6.70728261,143.13,143.05,27.66479]
[1641656485560,6.70728261,143.13,143.05,34.92179]
[1641656485963,5.58976519,143.12,143.05,34.92179]
[1641656486664,5.58976519,143.12,143.05,62.58658]
[1641656490464,5.58976519,143.12,143.08,4.0]
[1641656490665,5.58880981,143.15,143.11,4.0]
[1641656490866,5.58880981,143.15,143.12,27.66479]
[1641656491067,6.70569533,143.17,143.12,27.66479]
[1641656491471,27.66479,143.18,143.12,27.66479]
[1641656491671,27.66479,143.18,143.13,1.746]
[1641656491867,27.66479,143.18,143.15,4.0]
[1641656492169,27.66479,143.18,143.15,11.678]
[1641656492366,27.66479,143.18,143.16,4.0]
[1641656492567,27.66479,143.18,143.17,4.0]
[1641656493766,27.66479,143.21,143.17,4.0]
[1641656493767,20.43945548,143.24,143.17,4.0]
[1641656493967,21.55560574,143.26,143.19,4.0]
[1641656494167,21.55560574,143.26,143.19,6.625]
[1641656494368,21.55560574,143.26,143.19,10.625]
[1641656494567,14.85432777,143.26,143.19,10.625]
[1641656494869,14.85432777,143.26,143.23,27.66479]
[1641656495068,108.81359237,143.3,143.23,27.66479]
[1641656495268,44.20309237,143.3,143.23,27.66479]
[1641656495468,44.20309237,143.3,143.23,35.75479]
[1641656495770,19.8413213,143.29,143.23,35.75479]
[1641656496271,19.8413213,143.29,143.23,27.81873709]
[1641656496870,19.8413213,143.29,143.27,27.66479]
[1641656497074,14.85432777,143.31,143.27,35.87679]
[1641656497270,14.85432777,143.31,143.3,4.0]
[1641656497473,39.55112193,143.35,143.3,9.744]
[1641656497671,4.91754269,143.34,143.3,9.744]
[1641656498274,4.91754269,143.34,143.3,5.744]
[1641656498674,4.91754269,143.34,143.28,1.744]
[1641656498875,4.91754269,143.34,143.31,27.66479]
[1641656499075,5.58031043,143.37,143.31,27.66479]
[1641656499778,5.58031043,143.37,143.31,33.18079]
[1641656500180,6.98129014,143.34,143.31,33.18079]
[1641656500381,20.0,143.32,143.27,27.66479]
[1641656500683,5.58257617,143.31,143.27,27.66479]
[1641656500883,5.79,143.34,143.27,27.66479]
[1641656501485,6.69689159,143.36,143.27,38.32079]
[1641656501981,6.69689159,143.36,143.27,34.32079]
[1641656502881,6.69689159,143.36,143.3,27.66479]
[1641656505985,6.69689159,143.36,143.3,34.02679]
[1641656507987,20.0,143.38,143.31,4.0]
[1641656508387,8.0332266,143.41,143.3,38.02679]
[1641656508587,8.0332266,143.41,143.3,34.02679]
[1641656508787,8.0332266,143.41,143.31,4.0]
[1641656508987,8.0332266,143.41,143.3,38.02679]
[1641656509189,8.0332266,143.41,143.36,27.66479]
[1641656509392,12.0332266,143.41,143.36,6.61]
[1641656509593,5.58015541,143.37,143.3,34.02679]
[1641656509791,11.20115541,143.37,143.3,34.02679]
[1641656510594,5.621,143.37,143.3,34.02679]
[1641656510996,6.69472832,143.4,143.3,34.02679]
[1641656511196,6.69472832,143.4,143.35,27.66479]
[1641656511395,5.5801835,143.37,143.35,27.66479]
[1641656511594,11.16051766,143.37,143.35,27.66479]
[1641656511996,11.16051766,143.37,143.3,34.02679]
[1641656512397,5.58033416,143.37,143.3,34.02679]
[1641656513399,5.58100144,143.35,143.3,34.02679]
[1641656514600,5.58100144,143.35,143.31,4.0]
[1641656514799,5.58100144,143.35,143.3,34.02679]
[1641656515200,5.58100144,143.35,143.33,27.66479]
[1641656515501,26.97885407,143.39,143.33,34.94979]
[1641656515802,5.57989807,143.38,143.33,34.94979]
[1641656520106,9.57989807,143.38,143.33,34.94979]
[1641656520305,5.58034186,143.37,143.33,7.285]
[1641656520506,5.58034186,143.37,143.3,27.66479]
[1641656521905,5.58078574,143.35,143.3,27.66479]
[1641656522305,11.57734186,143.37,143.3,27.66479]
[1641656522706,5.58066522,143.36,143.3,27.66479]
[1641656523806,5.58066522,143.36,143.3,31.66479]
[1641656525005,4.91754269,143.38,143.3,31.66479]
[1641656525206,4.91754269,143.38,143.3,27.66479]
[1641656525405,27.66479,143.35,143.3,4.91754269]
[1641656525605,5.5813555,143.34,143.3,4.91754269]
[1641656526208,5.5813555,143.34,143.29,4.91754269]
[1641656527210,10.49889819,143.34,143.3,4.91754269]
[1641656527411,4.91754269,143.34,143.31,27.66479]
[1641656528315,6.69621957,143.37,143.32,2.97621124]
[1641656529114,6.69621957,143.37,143.34,4.94328688]
[1641656530317,4.91754269,143.36,143.33,4.94328688]
[1641656530717,11.09154269,143.36,143.33,4.94328688]
[1641656531324,4.91754269,143.35,143.31,4.94328688]
[1641656532222,4.91754269,143.35,143.31,7.91949812]
[1641656532622,10.49848861,143.35,143.31,7.91949812]
[1641656533724,4.91754269,143.34,143.31,7.91949812]
[1641656534628,10.49848861,143.35,143.31,7.91949812]
[1641656535628,4.91754269,143.34,143.31,7.91949812]
[1641656536431,10.49848861,143.35,143.31,7.91949812]
[1641656536629,10.49848861,143.35,143.31,16.33949812]
[1641656537328,10.49848861,143.35,143.32,4.94328688]
[1641656537529,5.58094592,143.35,143.32,7.91949812]
[1641656538430,4.91754269,143.36,143.33,4.94328688]
[1641656539531,4.269e-05,143.36,143.35,4.0]
[1641656539734,14.83171561,143.39,143.35,65.58558]
[1641656539935,4.94453594,143.39,143.35,65.58558]
[1641656540434,4.94453594,143.39,143.35,61.58558]
[1641656540836,10.52384673,143.39,143.35,61.58558]
[1641656541034,5.57931079,143.39,143.35,61.58558]
[1641656541237,5.57931079,143.39,143.36,2.97621124]
[1641656541834,5.58006698,143.37,143.36,2.97621124]
[1641656542236,5.58006698,143.37,143.35,55.32958]
[1641656546543,13.67297112,143.4,143.35,55.32958]
[1641656549145,6.69460406,143.4,143.35,55.32958]
[1641656550247,6.69460406,143.4,143.36,3.02320962]
[1641656551747,6.69460406,143.4,143.35,4.0]
[1641656551948,6.69460406,143.4,143.35,27.66479]
[1641656552148,5.57963514,143.38,143.35,27.66479]
[1641656552349,13.63463514,143.38,143.35,27.66479]
[1641656552549,13.63463514,143.38,143.36,3.02320962]
[1641656553349,37.63463514,143.38,143.35,27.66479]
[1641656554351,37.63463514,143.38,143.31,66.1084]
[1641656554552,33.63463514,143.38,143.31,66.1084]
[1641656555052,33.63463514,143.38,143.32,3.02362419]
[1641656555551,37.63463514,143.38,143.32,3.02362419]
[1641656555752,9.58057408,143.36,143.32,3.02362419]
[1641656555954,5.58172505,143.33,143.32,3.02362419]
[1641656556154,13.63772505,143.33,143.32,3.02362419]
[1641656556354,13.63772505,143.33,143.28,17.8553398]
[1641656557958,5.58172505,143.33,143.28,17.8553398]
[1641656558158,4.63011829,143.36,143.28,17.8553398]
[1641656558358,91.29919,143.37,143.28,17.8553398]
[1641656558559,19.83007564,143.35,143.28,17.8553398]
[1641656558760,19.83007564,143.35,143.29,14.83171561]
[1641656558959,19.83007564,143.36,143.29,14.83171561]
[1641656559560,19.83007564,143.36,143.29,21.26371561]
[1641656559964,19.83007564,143.36,143.3,27.66479]
[1641656560161,23.83007564,143.36,143.3,27.66479]
[1641656560361,23.83007564,143.36,143.3,30.68841419]
[1641656560763,23.83007564,143.36,143.3,3.02362419]
[1641656560960,20.0,143.32,143.26,3.488]
[1641656561161,10.98324022,143.31,143.22,68.981]
[1641656561361,4.0,143.3,143.28,14.81458712]
[1641656561664,20.0,143.29,143.22,68.981]
[1641656561860,27.66479,143.28,143.22,68.981]
[1641656562061,7.429,143.29,143.22,68.981]
[1641656562466,6.98324022,143.31,143.25,8.01]
[1641656562861,94.34849014,143.35,143.25,8.01]
[1641656563560,101.04569871,143.35,143.25,8.01]
[1641656563762,5.58231927,143.31,143.25,8.01]
[1641656563963,5.58231927,143.31,143.24,27.66479]
[1641656568868,111.28545503,143.35,143.24,27.66479]
[1641656569068,107.28545503,143.35,143.24,36.44879]
[1641656569670,19.83298803,143.34,143.24,36.44879]
[1641656569868,19.83298803,143.34,143.24,64.11358]
[1641656570069,5.58203843,143.32,143.24,64.11358]
[1641656572277,6.9820213,143.33,143.24,68.11358]
[1641656572477,6.9820213,143.33,143.25,1.744]
[1641656572677,6.9820213,143.33,143.25,7.488]
[1641656572979,6.9820213,143.33,143.25,3.488]
[1641656573877,6.9820213,143.33,143.29,27.66479]
[1641656575583,5.58054112,143.36,143.29,34.39179]
[1641656575981,5.58054112,143.36,143.33,27.66479]
[1641656576182,5.58054112,143.36,143.33,34.51879]
[1641656576782,5.58054112,143.36,143.33,6.854]
[1641656577583,5.58054112,143.36,143.3,63.0352]
[1641656577982,5.58054112,143.36,143.33,27.66479]
[1641656580287,9.58054112,143.36,143.29,27.66479]
[1641656580488,5.58168604,143.33,143.29,27.66479]
[1641656582089,5.58168604,143.33,143.29,55.32958]
[1641656582488,28.03465545,143.38,143.29,55.32958]
[1641656583190,19.82957101,143.37,143.29,55.32958]
[1641656583991,19.82957101,143.37,143.32,27.66479]
[1641656584691,19.82957101,143.37,143.33,4.0]
[1641656584893,5.5784622,143.41,143.33,4.0]
[1641656585094,5.5784622,143.41,143.33,65.7872]
[1641656585594,5.5784622,143.41,143.33,69.7872]
[1641656585995,5.5784622,143.41,143.37,27.66479]
[1641656586193,5.5784622,143.41,143.37,33.83679]
[1641656587495,6.97739325,143.43,143.37,33.83679]
[1641656588095,19.82266155,143.42,143.37,33.83679]
[1641656588495,19.82266155,143.42,143.37,6.172]
[1641656589297,19.82266155,143.42,143.34,3.486]
[1641656589699,25.4008796,143.42,143.34,3.486]
[1641656590197,19.82266155,143.41,143.35,27.66479]
[1641656592097,19.82266155,143.41,143.38,27.66479]
[1641656592300,19.82266155,143.41,143.38,34.21179]
[1641656592699,12.55535042,143.43,143.38,34.21179]
[1641656593500,19.82318001,143.42,143.38,34.21179]
[1641656593900,19.82318001,143.42,143.38,38.21179]
[1641656594100,19.82318001,143.42,143.41,27.66479]
[1641656594301,19.82318001,143.42,143.41,36.05079]
[1641656594501,14.77783059,143.45,143.41,36.05079]
[1641656594700,6.6922093,143.46,143.41,36.05079]
[1641656595501,14.77783059,143.47,143.41,36.05079]
[1641656595803,5.57540844,143.49,143.41,36.05079]
[1641656596004,5.57540844,143.49,143.41,63.71558]
[1641656596603,19.81574671,143.48,143.41,67.71558]
[1641656596803,19.81574671,143.48,143.41,63.71558]
[1641656597003,19.81574671,143.48,143.41,67.71558]
[1641656597204,5.57540844,143.49,143.41,63.71558]
[1641656597703,5.57540844,143.49,143.41,67.71558]
[1641656598103,5.57540844,143.49,143.44,27.66479]
[1641656598505,5.57540844,143.49,143.44,34.47879]
[1641656599904,5.57540844,143.49,143.44,27.66479]
[1641656601209,10.48840045,143.49,143.44,27.66479]
[1641656602712,5.57540844,143.49,143.44,27.66479]
[1641656604012,5.57540844,143.49,143.47,27.66479]
[1641656605512,5.57581717,143.48,143.47,27.66479]
[1641656607515,4.91299201,143.51,143.47,27.66479]
[1641656608617,9.63254297,143.52,143.42,4.91299201]
[1641656608916,4.0,143.43,143.35,39.55112193]
[1641656609117,8.03149454,143.44,143.35,39.55112193]
[1641656609319,5.57828169,143.42,143.35,39.55112193]
[1641656609517,6.26,143.42,143.32,68.2332]
[1641656609717,6.26,143.42,143.33,1.743]
[1641656609917,0.0001,143.42,143.33,1.743]
[1641656610120,27.66479,143.46,143.38,27.66479]
[1641656610319,27.66479,143.46,143.39,1.743]
[1641656611421,27.66479,143.48,143.39,1.743]
[1641656612521,31.66479,143.48,143.39,1.743]
[1641656613421,31.66479,143.48,143.39,71.3517]
[1641656613925,27.66479,143.48,143.39,71.3517]
[1641656614122,31.66479,143.48,143.39,71.3517]
[1641656614623,6.97398703,143.49,143.39,71.3517]
[1641656614824,9.63371886,143.5,143.39,71.3517]
[1641656615525,9.63371886,143.5,143.4,2.78102991]
[1641656615725,13.63371886,143.5,143.41,1.742]
[1641656616128,13.63371886,143.5,143.41,29.40679]
[1641656616527,13.63371886,143.5,143.42,2.78102991]
[1641656617127,9.63371886,143.5,143.42,2.78102991]
[1641656617527,4.0,143.51,143.42,8.38602991]
[1641656617726,4.0,143.51,143.42,10.12802991]
[1641656617926,4.0,143.51,143.43,2.78102991]
[1641656618126,4.0,143.51,143.45,27.66479]
[1641656618526,100.70177517,143.52,143.45,27.66479]
[1641656618727,104.70177517,143.52,143.45,27.66479]
[1641656618927,38.63707517,143.52,143.45,19.74132773]
[1641656619628,38.63707517,143.52,143.45,25.35032773]
[1641656620030,31.66479,143.52,143.45,25.35032773]
[1641656620632,4.0,143.51,143.45,25.35032773]
[1641656620832,31.66479,143.52,143.45,25.35032773]
[1641656621835,27.66479,143.52,143.43,66.233]
[1641656622033,35.21179,143.52,143.43,66.233]
[1641656622433,39.21179,143.52,143.43,66.233]
[1641656622834,39.21179,143.52,143.44,2.85452212]
[1641656623038,35.21179,143.52,143.44,11.35952212]
[1641656623240,27.66479,143.52,143.44,11.35952212]
[1641656623438,4.0,143.5,143.44,11.35952212]
[1641656623640,27.66479,143.52,143.44,8.505]
[1641656623941,31.66479,143.52,143.44,8.505]
[1641656624541,2.07546808,143.51,143.44,8.505]
[1641656624742,2.07546808,143.51,143.44,10.247]
[1641656625641,8.82349934,143.53,143.44,10.247]
[1641656625841,4.0,143.55,143.45,2.85753183]
[1641656626041,4.0,143.55,143.46,1.742]
[1641656626243,4.0,143.55,143.49,27.66479]
[1641656626543,4.0,143.55,143.49,34.46379]
[1641656627143,33.23699138,143.57,143.49,6.799]
[1641656627344,4.0,143.55,143.49,6.799]
[1641656627643,5.5729756,143.55,143.45,68.9627]
[1641656627843,5.5729756,143.55,143.45,67.2217]
[1641656628243,9.5729756,143.55,143.47,27.66479]
[1641656628445,9.5729756,143.55,143.47,34.78579]
[1641656628945,4.0,143.55,143.47,34.78579]
[1641656630648,4.0,143.55,143.47,27.66479]
[1641656631249,4.0,143.55,143.46,66.6916]
[1641656636151,27.66479,143.57,143.49,27.66479]
[1641656636351,27.66479,143.57,143.49,34.03579]
[1641656637456,31.66479,143.59,143.49,34.03579]
[1641656637753,31.66479,143.59,143.5,71.3364]
[1641656638153,4.0,143.58,143.5,71.3364]
[1641656638353,27.66479,143.59,143.5,71.3364]
[1641656638556,31.66479,143.59,143.5,71.3364]
[1641656638754,27.66479,143.59,143.5,71.3364]
[1641656640256,4.0,143.6,143.52,27.66479]
[1641656640957,70.97628935,143.61,143.52,27.66479]
[1641656641154,4.0,143.6,143.52,27.66479]
[1641656641956,70.97628935,143.61,143.52,27.66479]
[1641656642156,4.0,143.6,143.52,27.66479]
[1641656643456,70.97628935,143.61,143.52,27.66479]
[1641656643656,74.97628935,143.61,143.52,27.66479]
[1641656643856,31.66479,143.62,143.52,27.66479]
[1641656644057,4.0,143.62,143.53,1.741]
[1641656644255,4.0,143.62,143.56,27.66479]
[1641656644757,14.73480116,143.63,143.53,1.741]
[1641656644957,4.0,143.61,143.53,1.741]
[1641656645158,8.676,143.62,143.52,44.14059116]
[1641656645455,5.57071279,143.61,143.52,42.39959116]
[1641656645658,4.0,143.59,143.52,42.39959116]
[1641656645856,7.954,143.59,143.52,27.66479]
[1641656646057,5.57185173,143.58,143.5,84.33020116]
[1641656646356,4.0,143.56,143.5,84.33020116]
[1641656646557,11.231,143.56,143.5,84.33020116]
[1641656646958,11.231,143.56,143.5,69.5954]
[1641656647358,11.231,143.56,143.52,12.0]
[1641656648159,7.231,143.56,143.52,12.0]
[1641656648459,4.0,143.55,143.52,12.0]
[1641656649159,33.23664173,143.58,143.52,12.0]
[1641656649459,4.0,143.57,143.52,12.0]
[1641656649859,4.0,143.56,143.52,12.0]
[1641656650263,4.0,143.59,143.52,12.0]
[1641656651862,4.0,143.59,143.52,26.73480116]
[1641656652665,4.0,143.59,143.52,12.0]
[1641656652865,4.0,143.55,143.52,12.0]
[1641656653064,4.0,143.54,143.52,12.0]
[1641656653264,4.0,143.57,143.52,12.0]
[1641656653464,5.57215985,143.58,143.52,12.0]
[1641656653664,4.0,143.58,143.52,12.0]
[1641656654067,5.57095439,143.61,143.52,20.385]
[1641656654266,6.96742728,143.62,143.54,27.66479]
[1641656654767,4.0,143.59,143.54,27.66479]
[1641656655168,4.0,143.62,143.54,27.66479]
[1641656655370,31.66479,143.64,143.54,27.66479]
[1641656655568,31.66479,143.64,143.55,1.741]
[1641656655770,31.66479,143.64,143.55,8.852]
[1641656656168,31.66479,143.64,143.56,65.4919]
[1641656656368,14.73480116,143.65,143.59,27.66479]
[1641656656569,14.73480116,143.66,143.6,1.74]
[1641656657875,4.0,143.68,143.6,1.74]
[1641656658375,4.0,143.68,143.63,27.66479]
[1641656658575,4.0,143.68,143.63,36.47779]
[1641656659375,27.66479,143.69,143.63,36.47779]
[1641656659577,4.0,143.68,143.63,36.47779]
[1641656660779,4.0,143.67,143.63,36.47779]
[1641656660979,5.606,143.68,143.6,1.74]
[1641656661183,5.606,143.68,143.57,14.73480116]
[1641656661381,5.606,143.68,143.56,65.4919]
[1641656661580,4.0,143.64,143.56,65.4919]
[1641656661982,4.0,143.65,143.56,65.4919]
[1641656662184,9.606,143.68,143.56,65.4919]
[1641656662382,9.606,143.68,143.59,27.66479]
[1641656662583,4.0,143.67,143.59,27.66479]
[1641656662883,5.606,143.68,143.59,27.66479]
[1641656663083,4.0,143.65,143.59,27.66479]
[1641656663882,11.17395813,143.68,143.59,27.66479]
[1641656664084,4.0,143.66,143.59,27.66479]
[1641656664484,5.56795813,143.68,143.59,27.66479]
[1641656664684,4.0,143.65,143.59,27.66479]
[1641656664883,4.0,143.64,143.59,27.66479]
[1641656665483,4.0,143.65,143.59,27.66479]
[1641656665987,12.53271645,143.68,143.59,27.66479]
[1641656666287,27.26751761,143.68,143.59,27.66479]
[1641656666488,4.0,143.65,143.59,27.66479]
[1641656666887,27.26751761,143.68,143.59,27.66479]